bitfinex/quotes_BTCUSD_20241206
["timestamp","ask_amount","ask_price","bid_price","bid_amount"]
[1733448000820,0.0008657,97400.0,97398.0,0.073]
[1733448001035,0.0008657,97400.0,97398.0,0.05]
[1733448007344,0.0005941,97420.0,97398.0,0.05]
[1733448007541,0.00058436,97409.0,97399.0,0.00102655]
[1733448007811,0.00058436,97409.0,97400.0,0.00102655]
[1733448008702,0.00058436,97409.0,97398.0,0.05]
[1733448008703,0.00058436,97409.0,97401.0,0.00102655]
[1733448008920,0.00058436,97409.0,97399.0,0.00102655]
[1733448009346,0.10503154,97408.0,97405.0,0.05]
[1733448009563,0.10503154,97408.0,97391.0,0.00102658]
[1733448009801,0.10503154,97408.0,97392.0,0.0010266]
[1733448010715,0.10503154,97408.0,97393.0,0.0010266]
[1733448011661,0.10503154,97408.0,97394.0,0.0010266]
[1733448011874,0.10503154,97408.0,97391.0,0.0010266]
[1733448012148,0.00058436,97409.0,97408.0,0.073]
[1733448012371,0.00058436,97409.0,97408.0,0.17803154]
[1733448012611,0.00058436,97409.0,97408.0,0.17905782]
[1733448014418,0.00058436,97409.0,97408.0,0.0740263]
[1733448015536,0.00058436,97409.0,97408.0,0.073]
[1733448015763,0.00058436,97409.0,97397.0,0.05]
[1733448016025,0.00058436,97409.0,97400.0,0.00102642]
[1733448016246,0.00058436,97409.0,97397.0,0.05]
[1733448016474,0.00058436,97409.0,97408.0,0.05]
[1733448016677,0.00058436,97409.0,97408.0,0.15503154]
[1733448016897,0.00058436,97409.0,97408.0,0.15605784]
[1733448017932,0.00058436,97409.0,97408.0,0.17905784]
[1733448023806,0.00158436,97409.0,97408.0,0.17905784]
[1733448024245,0.00158436,97409.0,97408.0,0.22905784]
[1733448024478,0.00158436,97409.0,97408.0,0.22803154]
[1733448028327,0.00158436,97409.0,97408.0,0.25405094]
[1733448029864,0.0097197,97464.0,97441.0,0.05]
[1733448030097,0.10503154,97463.0,97459.0,0.08415618]
[1733448030319,0.004099,97460.0,97442.0,0.00102604]
[1733448030569,0.10913054,97460.0,97442.0,0.00102604]
[1733448030771,0.09413054,97460.0,97442.0,0.00102604]
[1733448031237,0.10503154,97463.0,97441.0,0.00102605]
[1733448031640,0.14602954,97463.0,97441.0,0.00102605]
[1733448032052,0.10503154,97463.0,97441.0,0.00102605]
[1733448032692,0.05089207,97464.0,97441.0,0.00102605]
[1733448032916,0.00017537,97464.0,97457.0,0.023]
[1733448033128,0.00017537,97464.0,97459.0,0.023]
[1733448033347,0.00017537,97464.0,97460.0,0.00102586]
[1733448033793,0.00017537,97464.0,97459.0,0.023]
[1733448033974,0.00017537,97464.0,97460.0,0.00102586]
[1733448034679,0.00017537,97464.0,97452.0,0.05]
[1733448034680,0.00017537,97464.0,97452.0,0.04702586]
[1733448034940,0.00017537,97464.0,97431.0,0.076]
[1733448034941,0.0828,97461.0,97435.0,0.04702586]
[1733448035148,0.0828,97461.0,97431.0,0.05]
[1733448035149,0.0487,97460.0,97443.0,0.04702586]
[1733448035354,0.0487,97460.0,97431.0,0.10503154]
[1733448035355,0.0487,97460.0,97444.0,0.00102604]
[1733448035500,0.05550769,97460.0,97440.0,0.00102604]
[1733448035668,0.05550769,97460.0,97439.0,0.04702586]
[1733448035873,0.00680769,97460.0,97440.0,0.00102604]
[1733448037571,0.00676769,97460.0,97440.0,0.00102604]
[1733448039206,0.09136278,97459.0,97440.0,0.00102604]
[1733448039407,0.00676769,97460.0,97440.0,0.00102604]
[1733448039408,0.09136278,97458.0,97440.0,0.00102604]
[1733448039757,0.09136278,97459.0,97440.0,0.00102604]
[1733448039992,0.09136278,97456.0,97440.0,0.00102604]
[1733448040225,0.09136278,97452.0,97440.0,0.00102604]
[1733448040628,0.09161602,97452.0,97441.0,0.00102606]
[1733448040880,0.00679015,97451.0,97441.0,0.00102606]
[1733448041337,0.0131169,97451.0,97441.0,0.00102606]
[1733448041543,0.09164017,97453.0,97452.0,0.023]
[1733448041720,0.13742403,97457.0,97452.0,0.023]
[1733448041946,0.13742403,97456.0,97452.0,0.02402604]
[1733448042148,0.18409595,97460.0,97452.0,0.023]
[1733448042379,0.33827378,97459.0,97453.0,0.00102602]
[1733448042613,0.0008639,97460.0,97453.0,0.00102602]
[1733448042818,0.0008639,97460.0,97452.0,0.023]
[1733448042819,0.0008639,97460.0,97454.0,0.00102602]
[1733448044684,0.08184117,97461.0,97455.0,0.00102602]
[1733448045291,0.00017537,97464.0,97455.0,0.00102602]
[1733448045841,0.00017537,97464.0,97456.0,0.0010259]
[1733448046750,0.00017537,97464.0,97457.0,0.00102585]
[1733448047186,0.00017537,97464.0,97459.0,0.023]
[1733448047390,0.00017537,97464.0,97460.0,0.00102585]
[1733448048217,0.00017537,97464.0,97459.0,0.023]
[1733448048655,0.00017537,97464.0,97460.0,0.00102589]
[1733448054257,0.088639,97475.0,97460.0,0.00102589]
[1733448054472,0.13739107,97478.0,97460.0,0.00102589]
[1733448054473,0.13739107,97478.0,97460.0,0.00120126]
[1733448054677,0.1374484,97478.0,97460.0,0.00120126]
[1733448055285,0.1374484,97477.0,97460.0,0.00120126]
[1733448055491,0.1374484,97478.0,97464.0,0.023]
[1733448055710,0.001,97479.0,97478.0,0.12002586]
[1733448055911,0.1384484,97489.0,97478.0,0.12002586]
[1733448055912,0.001,97489.0,97488.0,0.05]
[1733448056119,0.001,97489.0,97488.0,0.1560571]
[1733448056501,0.001,97489.0,97488.0,0.20308296]
[1733448056723,0.001,97489.0,97488.0,0.2020574]
[1733448057331,0.001,97499.0,97497.0,0.05]
[1733448057534,0.001,97499.0,97498.0,0.15605693]
[1733448057882,0.30908067,97519.0,97498.0,0.15605693]
[1733448057883,0.08,97519.0,97498.0,0.15605693]
[1733448058084,0.001,97519.0,97518.0,0.12242586]
[1733448058287,0.001,97519.0,97518.0,0.27848259]
[1733448058465,0.001,97519.0,97518.0,0.2774574]
[1733448058874,0.00158425,97519.0,97518.0,0.2774574]
[1733448059902,0.00158425,97519.0,97518.0,0.2250574]
[1733448060049,0.00158425,97519.0,97518.0,0.023]
[1733448060277,0.00158425,97519.0,97512.0,0.023]
[1733448060470,0.00158425,97519.0,97513.0,0.00102526]
[1733448061603,0.00158425,97519.0,97518.0,0.05]
[1733448061870,0.00158425,97519.0,97518.0,0.2260825]
[1733448062104,0.00158425,97519.0,97518.0,0.2250574]
[1733448062333,0.0075204,97533.0,97528.0,0.023]
[1733448062555,0.0075204,97533.0,97528.0,0.17905661]
[1733448062758,0.00117516,97529.0,97528.0,0.17905661]
[1733448064044,0.0075204,97533.0,97532.0,0.09702586]
[1733448064257,0.0075204,97533.0,97532.0,0.20308232]
[1733448064503,0.0075204,97533.0,97532.0,0.2020574]
[1733448065124,0.0075204,97533.0,97532.0,0.10503154]
[1733448065332,0.0075204,97533.0,97532.0,0.00102501]
[1733448065979,0.0075204,97533.0,97532.0,0.00102511]
[1733448066214,0.0075204,97533.0,97528.0,0.00017516]
[1733448066215,0.11255194,97533.0,97528.0,0.00017516]
[1733448066425,0.00297414,97529.0,97528.0,0.00017516]
[1733448066621,0.10800568,97529.0,97528.0,0.00017516]
[1733448069703,0.18700568,97529.0,97528.0,0.00017516]
[1733448070108,0.00297414,97522.0,97519.0,0.01094194]
[1733448070322,0.10503154,97521.0,97519.0,0.01094194]
[1733448074577,0.00017493,97522.0,97519.0,0.01094194]
[1733448077377,0.00017493,97522.0,97516.0,0.01094194]
[1733448078009,0.00017493,97522.0,97517.0,0.10503154]
[1733448078229,0.00017493,97522.0,97521.0,0.05]
[1733448078434,0.00017493,97522.0,97516.0,0.01094194]
[1733448083234,0.00017493,97522.0,97519.0,0.05]
[1733448083428,0.00017493,97522.0,97519.0,0.15503154]
[1733448084326,0.00017493,97522.0,97521.0,0.05]
[1733448084700,0.00017493,97522.0,97521.0,0.15503154]
[1733448084873,0.00017493,97522.0,97521.0,0.3548574]
[1733448086540,0.001,97529.0,97528.0,0.09702586]
[1733448086761,0.00096,97529.0,97528.0,0.2250574]
[1733448091223,0.00096,97529.0,97528.0,0.17803154]
[1733448091430,0.00096,97529.0,97528.0,0.2020574]
[1733448091838,0.00096,97529.0,97528.0,0.15503154]
[1733448092046,0.00096,97529.0,97528.0,0.2020574]
[1733448092474,0.0008643,97530.0,97528.0,0.2020574]
[1733448092475,0.0008643,97530.0,97529.0,0.1070078]
[1733448092709,0.0008643,97530.0,97529.0,0.16501348]
[1733448093130,0.0008643,97530.0,97529.0,0.11501348]
[1733448093335,0.0008643,97530.0,97529.0,0.16501348]
[1733448093665,0.0008643,97530.0,97529.0,0.11501348]
[1733448094123,0.0008643,97530.0,97529.0,0.00998194]
[1733448096468,0.0008643,97530.0,97521.0,0.00017493]
[1733448096469,0.0778643,97530.0,97521.0,0.00017493]
[1733448096678,0.00297414,97526.0,97521.0,0.00017493]
[1733448096868,0.15083154,97529.0,97521.0,0.00017493]
[1733448096869,0.00297414,97522.0,97521.0,0.00017493]
[1733448097319,0.00297414,97519.0,97501.0,0.05]
[1733448097522,0.00297414,97518.0,97501.0,0.05]
[1733448097899,0.0940804,97518.0,97501.0,0.05]
[1733448098101,0.00297414,97518.0,97501.0,0.05]
[1733448099040,0.0940804,97518.0,97501.0,0.05]
[1733448099240,0.09110626,97517.0,97501.0,0.05]
[1733448100326,0.09110626,97518.0,97501.0,0.05]
[1733448100533,0.09110626,97518.0,97503.0,0.05]
[1733448100942,0.09110626,97519.0,97510.0,0.10676014]
[1733448101141,0.00017497,97522.0,97510.0,0.10676014]
[1733448101142,0.09110626,97518.0,97510.0,0.10676014]
[1733448101366,0.09110626,97515.0,97510.0,0.10676014]
[1733448101571,0.09110626,97515.0,97510.0,0.0017286]
[1733448101715,0.09110626,97514.0,97510.0,0.0017286]
[1733448101919,0.09110626,97513.0,97510.0,0.0017286]
[1733448102200,0.09110626,97512.0,97510.0,0.0017286]
[1733448102593,0.09110626,97511.0,97510.0,0.0017286]
[1733448102803,0.09110626,97513.0,97510.0,0.0017286]
[1733448103128,0.09163447,97513.0,97510.0,0.0017286]
[1733448103342,0.09163447,97512.0,97510.0,0.0017286]
[1733448103587,0.09165108,97511.0,97510.0,0.0017286]
[1733448103988,0.09165108,97512.0,97510.0,0.0017286]
[1733448104190,0.00017497,97522.0,97510.0,0.0017286]
[1733448104191,0.09165108,97513.0,97510.0,0.0017286]
[1733448104410,0.13747662,97516.0,97510.0,0.0017286]
[1733448104411,0.09165108,97514.0,97510.0,0.0017286]
[1733448105248,0.09165108,97515.0,97510.0,0.0017286]
[1733448106564,0.09165108,97516.0,97510.0,0.0017286]
[1733448106990,0.09165108,97517.0,97510.0,0.0017286]
[1733448107197,0.09165108,97518.0,97510.0,0.0017286]
[1733448107643,0.09265108,97519.0,97510.0,0.0017286]
[1733448107908,0.001,97519.0,97510.0,0.10676014]
[1733448109274,0.001,97519.0,97514.0,0.05]
[1733448109477,0.001,97519.0,97514.0,0.15503154]
[1733448110685,0.001,97519.0,97510.0,0.0017286]
[1733448110686,0.001,97529.0,97528.0,0.12002586]
[1733448110883,0.001,97529.0,97528.0,0.2250574]
[1733448113807,0.001,97529.0,97528.0,0.17803154]
[1733448114067,0.001,97529.0,97528.0,0.2250574]
[1733448114275,0.001,97529.0,97528.0,0.17803154]
[1733448114479,0.001,97529.0,97528.0,0.2250574]
[1733448114682,0.001,97529.0,97528.0,0.17803154]
[1733448115660,0.001,97529.0,97528.0,0.12803154]
[1733448115860,0.001,97529.0,97528.0,0.10503154]
[1733448116082,0.001,97529.0,97525.0,0.0250574]
[1733448116282,0.001,97529.0,97510.0,0.00231285]
[1733448116485,0.001,97529.0,97511.0,0.10503154]
[1733448117301,0.001,97529.0,97513.0,0.0250574]
[1733448117541,0.001,97529.0,97514.0,0.10503154]
[1733448117763,0.001,97529.0,97516.0,0.0250574]
[1733448117962,0.001,97529.0,97517.0,0.10503154]
[1733448121046,0.001,97529.0,97518.0,0.0250574]
[1733448121422,0.001,97529.0,97519.0,0.10503154]
[1733448123689,0.001,97529.0,97510.0,0.01229847]
[1733448123905,0.0835,97529.0,97510.0,0.11733001]
[1733448124117,0.001,97529.0,97515.0,0.0250574]
[1733448124362,0.001,97529.0,97516.0,0.10503154]
[1733448126912,0.001,97529.0,97517.0,0.0250574]
[1733448127118,0.001,97529.0,97518.0,0.10503154]
[1733448128226,0.001,97529.0,97527.0,0.0250574]
[1733448128442,0.001,97529.0,97528.0,0.10503154]
[1733448128649,0.001,97529.0,97528.0,0.13008894]
[1733448129374,0.001,97529.0,97528.0,0.10503154]
[1733448129804,0.001,97529.0,97528.0,0.13008894]
[1733448131159,0.001,97529.0,97528.0,0.0250574]
[1733448131385,0.001,97529.0,97528.0,0.10503154]
[1733448131855,0.001,97529.0,97528.0,0.12803154]
[1733448133141,0.001,97529.0,97511.0,0.07425764]
[1733448133353,0.18327139,97595.0,97510.0,0.01229847]
[1733448133354,0.0825,97584.0,97563.0,0.0296305]
[1733448133561,0.0825,97584.0,97566.0,0.0296305]
[1733448134038,0.0825,97584.0,97565.0,0.0296305]
[1733448134671,0.08267513,97584.0,97565.0,0.0296305]
[1733448135755,0.08267513,97584.0,97565.0,0.02406212]
[1733448136745,0.08267513,97584.0,97570.0,0.02406212]
[1733448136966,0.08267513,97584.0,97573.0,0.02406212]
[1733448140544,0.08263513,97584.0,97573.0,0.02406212]
[1733448143025,0.08263513,97584.0,97565.0,0.01004144]
[1733448143026,0.08263513,97584.0,97565.0,0.03410356]
[1733448143228,0.08263513,97584.0,97565.0,0.02406212]
[1733448143682,0.023,97581.0,97559.0,0.0009814]
[1733448143912,0.0812,97582.0,97559.0,0.0009814]
[1733448144138,0.18623154,97582.0,97560.0,0.0017278]
[1733448144357,0.0812,97579.0,97560.0,0.0017278]
[1733448144641,0.02593788,97575.0,97560.0,0.0017278]
[1733448144851,0.10503154,97574.0,97560.0,0.0017278]
[1733448146022,0.0812,97573.0,97560.0,0.0017278]
[1733448146245,0.00017513,97584.0,97560.0,0.0017278]
[1733448146246,0.02593788,97562.0,97560.0,0.0017278]
[1733448146461,0.20923154,97561.0,97523.0,0.02406212]
[1733448146677,0.20923154,97561.0,97499.0,0.0453]
[1733448146678,0.1042,97554.0,97522.0,0.02406212]
[1733448146893,0.20923154,97554.0,97523.0,0.10503154]
[1733448147133,0.1042,97554.0,97526.0,0.02406212]
[1733448147363,0.20923154,97554.0,97522.0,0.07406212]
[1733448147586,0.10503154,97553.0,97522.0,0.02406212]
[1733448148235,0.02593788,97552.0,97517.0,0.02406212]
[1733448148463,0.10503154,97551.0,97518.0,0.02406212]
[1733448148883,0.023,97550.0,97518.0,0.02406212]
[1733448149120,0.023,97548.0,97518.0,0.02406212]
[1733448149329,0.023,97546.0,97518.0,0.02406212]
[1733448151761,7.777e-05,97553.0,97542.0,0.02406212]
[1733448152824,7.777e-05,97553.0,97545.0,0.02406212]
[1733448155571,7.777e-05,97553.0,97543.0,0.10503154]
[1733448155572,7.777e-05,97553.0,97546.0,0.05]
[1733448156222,7.777e-05,97553.0,97527.0,0.0451]
[1733448156223,7.777e-05,97553.0,97527.0,0.02419366]
[1733448156438,7.777e-05,97553.0,97528.0,0.10503154]
[1733448156638,7.777e-05,97553.0,97530.0,0.0017284]
[1733448156857,7.777e-05,97553.0,97531.0,0.10503154]
[1733448158332,7.777e-05,97553.0,97530.0,0.0017284]
[1733448158538,0.023,97551.0,97530.0,0.0017284]
[1733448158767,0.12803154,97551.0,97530.0,0.0017284]
[1733448159663,0.10503154,97550.0,97530.0,0.0017284]
[1733448159865,0.023,97549.0,97530.0,0.0017284]
[1733448160075,0.10503154,97548.0,97530.0,0.0017284]
[1733448160295,0.023,97547.0,97530.0,0.0017284]
[1733448160513,0.10503154,97546.0,97530.0,0.0017284]
[1733448160714,0.023,97545.0,97530.0,0.0017284]
[1733448161546,0.1289,97552.0,97530.0,0.0017284]
[1733448161757,0.023,97551.0,97530.0,0.0017284]
[1733448165652,0.023,97551.0,97500.0,0.08557381]
[1733448165804,0.023,97551.0,97510.0,0.01039892]
[1733448166005,0.023,97551.0,97511.0,0.10503154]
[1733448169111,0.023,97551.0,97530.0,0.0017284]
[1733448170607,0.023,97549.0,97530.0,0.0017284]
[1733448170816,0.15293154,97550.0,97530.0,0.0017284]
[1733448170817,0.1042,97545.0,97530.0,0.0017284]
[1733448171023,0.023,97543.0,97530.0,0.0017284]
[1733448174428,0.0812,97544.0,97530.0,0.0017284]
[1733448183770,0.024,97549.0,97530.0,0.0017284]
[1733448184004,0.0479,97540.0,97530.0,0.0017284]
[1733448184213,0.1042,97539.0,97530.0,0.0017284]
[1733448186356,0.1042,97539.0,97494.0,0.18138886]
[1733448186357,0.023,97485.0,97456.0,0.2724833]
[1733448186572,0.023,97485.0,97476.0,0.0024894]
[1733448186573,0.05,97477.0,97476.0,0.0024894]
[1733448186821,0.59810655,97477.0,97476.0,0.0024894]
[1733448187067,1.12242209,97477.0,97476.0,0.0024894]
[1733448187314,0.64810655,97477.0,97476.0,0.0024894]
[1733448187552,0.023,97461.0,97443.0,0.01005941]
[1733448187772,0.46690655,97461.0,97443.0,0.01005941]
[1733448187987,0.46690655,97461.0,97460.0,0.00231345]
[1733448188415,0.36187501,97461.0,97460.0,0.00231345]
[1733448189451,0.33887501,97461.0,97460.0,0.00231345]
[1733448190339,0.33370904,97461.0,97460.0,0.00231345]
[1733448191493,0.33370904,97461.0,97460.0,0.01484039]
[1733448192195,0.56245259,97461.0,97460.0,0.01484039]
[1733448192362,0.33370904,97461.0,97460.0,0.00231345]
[1733448193293,0.33370904,97461.0,97460.0,0.00282728]
[1733448193663,0.33370904,97461.0,97460.0,0.00231345]
[1733448196168,0.80516946,97461.0,97430.0,0.0017298]
[1733448196367,0.13682708,97442.0,97441.0,0.1014937]
[1733448196611,0.13682672,97442.0,97441.0,0.1014937]
[1733448196817,0.18243346,97445.0,97441.0,0.1014937]
[1733448196986,0.13682447,97442.0,97441.0,0.1014937]
[1733448197194,0.13677916,97442.0,97441.0,0.1014937]
[1733448198189,0.13674847,97442.0,97441.0,0.1014937]
[1733448198659,0.18243346,97444.0,97441.0,0.1014937]
[1733448199275,0.13672598,97442.0,97441.0,0.1014937]
[1733448199507,0.18243346,97444.0,97441.0,0.1014937]
[1733448199951,0.13672432,97444.0,97443.0,0.10503154]
[1733448200160,0.09114636,97445.0,97443.0,0.10503154]
[1733448200379,0.09114636,97448.0,97444.0,0.10503154]
[1733448200581,0.09114636,97452.0,97447.0,0.10503154]
[1733448200816,0.09114636,97453.0,97448.0,0.10503154]
[1733448201219,0.07906821,97459.0,97449.0,0.10503154]
[1733448201432,0.07906821,97459.0,97441.0,0.023]
[1733448201433,0.13672432,97471.0,97450.0,0.10503154]
[1733448201652,0.13672432,97473.0,97455.0,0.10503154]
[1733448201859,0.12320321,97480.0,97472.0,0.10503154]
[1733448202079,0.22804182,97503.0,97474.0,0.10503154]
[1733448202558,0.0779,97507.0,97474.0,0.10503154]
[1733448202769,0.0779,97507.0,97474.0,0.10602674]
[1733448202979,0.07848342,97507.0,97474.0,0.10602674]
[1733448203845,0.07848342,97507.0,97474.0,0.11865726]
[1733448206365,0.33652421,97506.0,97474.0,0.11865726]
[1733448206544,0.07848342,97507.0,97474.0,0.11865726]
[1733448206765,0.33653125,97506.0,97474.0,0.11865726]
[1733448206967,0.07848342,97507.0,97474.0,0.11865726]
[1733448209773,0.18233774,97502.0,97474.0,0.11865726]
[1733448209990,0.18233774,97503.0,97474.0,0.11865726]
[1733448210337,0.33661668,97502.0,97474.0,0.11865726]
[1733448210473,0.18233774,97503.0,97474.0,0.11865726]
[1733448210680,0.51898317,97502.0,97474.0,0.11865726]
[1733448210961,0.13679515,97506.0,97475.0,0.10503154]
[1733448211165,0.00058342,97507.0,97482.0,0.10503154]
[1733448211360,0.00058342,97507.0,97485.0,0.10503154]
[1733448211966,0.00058342,97507.0,97485.0,0.10601654]
[1733448213821,0.00058342,97507.0,97485.0,0.11864328]
[1733448218651,0.00058342,97507.0,97491.0,0.10503154]
[1733448218849,0.09119149,97528.0,97503.0,0.10503154]
[1733448219023,0.13679515,97530.0,97503.0,0.10503154]
[1733448219024,0.09119149,97530.0,97503.0,0.10561496]
[1733448219233,0.25963774,97535.0,97503.0,0.10561496]
[1733448219234,0.09119149,97531.0,97503.0,0.10561496]
[1733448219442,0.09119149,97532.0,97503.0,0.10661066]
[1733448219651,0.09119149,97533.0,97503.0,0.10661066]
[1733448220062,0.09119149,97533.0,97507.0,0.10503154]
[1733448220488,0.09119149,97534.0,97507.0,0.10503154]
[1733448220970,0.09119149,97533.0,97507.0,0.10503154]
[1733448221168,0.09119149,97534.0,97507.0,0.10503154]
[1733448221405,0.09119149,97533.0,97507.0,0.10503154]
[1733448222335,0.09119149,97532.0,97507.0,0.10503154]
[1733448222537,0.09119149,97532.0,97507.0,0.1179029]
[1733448222736,0.09119149,97532.0,97512.0,0.10503154]
[1733448222938,0.0773,97535.0,97512.0,0.10503154]
[1733448224471,0.0773,97535.0,97513.0,0.023]
[1733448224654,0.0773,97535.0,97514.0,0.10503154]
[1733448224881,0.0773,97535.0,97515.0,0.023]
[1733448225082,0.0773,97535.0,97517.0,0.023]
[1733448225288,0.0773,97535.0,97519.0,0.023]
[1733448225500,0.0773,97535.0,97520.0,0.10503154]
[1733448225706,0.0773,97535.0,97521.0,0.023]
[1733448225904,0.0773,97535.0,97522.0,0.10503154]
[1733448226133,0.001,97539.0,97524.0,0.0511]
[1733448226364,0.13679814,97552.0,97525.0,0.023]
[1733448226586,0.0773,97561.0,97534.0,0.023]
[1733448226823,0.0773,97561.0,97535.0,0.10503154]
[1733448227016,0.0773,97561.0,97536.0,0.023]
[1733448227221,0.0773,97561.0,97537.0,0.10503154]
[1733448227427,0.0773,97561.0,97538.0,0.023]
[1733448227635,0.0773,97561.0,97539.0,0.10503154]
[1733448227846,0.00117503,97559.0,97540.0,0.023]
[1733448228063,0.00117503,97559.0,97541.0,0.10503154]
[1733448228291,0.00117503,97559.0,97542.0,0.023]
[1733448228533,0.00117503,97559.0,97543.0,0.10503154]
[1733448228719,0.00117503,97559.0,97479.0,0.0451]
[1733448228720,0.05,97532.0,97479.0,0.0451]
[1733448228917,0.0471,97532.0,97524.0,0.01249768]
[1733448229125,0.0471,97532.0,97502.0,0.10503154]
[1733448229763,0.0798,97530.0,97501.0,0.01291661]
[1733448229970,0.05,97526.0,97501.0,0.01291661]
[1733448230183,0.05,97526.0,97479.0,0.10503154]
[1733448230393,0.1298,97522.0,97479.0,0.10503154]
[1733448230597,0.05,97518.0,97479.0,0.10503154]
[1733448231242,0.05,97518.0,97479.0,0.10561496]
[1733448231707,0.10503154,97517.0,97479.0,0.10561496]
[1733448231937,0.15503154,97517.0,97479.0,0.10561496]
[1733448232156,0.15503154,97517.0,97479.0,0.00058342]
[1733448232157,0.05,97503.0,97479.0,0.00058342]
[1733448232621,0.05,97513.0,97479.0,0.00058342]
[1733448232622,0.05,97504.0,97479.0,0.00058342]
[1733448232832,0.05,97508.0,97479.0,0.00058342]
[1733448233066,0.05,97504.0,97479.0,0.00058342]
[1733448233473,0.10503154,97507.0,97479.0,0.00058342]
[1733448233691,0.05,97504.0,97479.0,0.00058342]
[1733448236271,0.05,97503.0,97479.0,0.00058342]
[1733448236561,0.09129758,97501.0,97479.0,0.00058342]
[1733448236774,0.09129758,97500.0,97479.0,0.00058342]
[1733448236985,0.09129758,97495.0,97479.0,0.00058342]
[1733448237199,0.09129758,97493.0,97479.0,0.00058342]
[1733448237423,0.09129758,97492.0,97479.0,0.00058342]
[1733448237634,0.09129758,97491.0,97479.0,0.00058342]
[1733448237855,0.09129758,97490.0,97479.0,0.00058342]
[1733448238282,0.09129758,97491.0,97479.0,0.00058342]
[1733448238738,0.131572,97492.0,97479.0,0.00058342]
[1733448238946,0.05,97514.0,97481.0,0.023]
[1733448239155,0.0008656,97510.0,97482.0,0.10503154]
[1733448241756,0.0008656,97510.0,97483.0,0.023]
[1733448241957,0.0008656,97510.0,97485.0,0.023]
[1733448242162,0.0008656,97510.0,97486.0,0.10503154]
[1733448244460,0.0008656,97510.0,97479.0,0.00058342]
[1733448244652,0.128,97509.0,97480.0,0.10503154]
[1733448245088,0.0795,97509.0,97480.0,0.10503154]
[1733448245318,0.0795,97509.0,97481.0,0.023]
[1733448245566,0.0795,97509.0,97482.0,0.10503154]
[1733448245776,0.0008656,97510.0,97485.0,0.023]
[1733448246042,0.0008656,97510.0,97487.0,0.023]
[1733448246279,0.0008656,97510.0,97489.0,0.023]
[1733448246534,0.0008656,97510.0,97490.0,0.10503154]
[1733448248966,0.0008656,97510.0,97491.0,0.023]
[1733448249178,0.0008656,97510.0,97493.0,0.023]
[1733448249437,0.0008656,97510.0,97495.0,0.023]
[1733448249665,0.0008656,97510.0,97496.0,0.10503154]
[1733448249895,0.0008656,97510.0,97497.0,0.023]
[1733448250120,0.0008656,97510.0,97498.0,0.10503154]
[1733448250620,0.001,97519.0,97498.0,0.10503154]
[1733448250621,0.001,97519.0,97501.0,0.12803154]
[1733448250859,0.001,97529.0,97508.0,0.10503154]
[1733448251078,0.001,97529.0,97509.0,0.023]
[1733448251292,0.001,97529.0,97511.0,0.023]
[1733448251516,0.001,97529.0,97512.0,0.10503154]
[1733448251764,0.001,97529.0,97513.0,0.023]
[1733448252027,0.001,97529.0,97514.0,0.10503154]
[1733448252236,0.001,97529.0,97515.0,0.023]
[1733448252450,0.001,97529.0,97516.0,0.10503154]
[1733448252664,0.001,97529.0,97517.0,0.023]
[1733448252874,0.001,97529.0,97519.0,0.023]
[1733448253097,0.001,97529.0,97520.0,0.10503154]
[1733448253299,0.001,97529.0,97520.0,0.10053154]
[1733448257107,0.0451,97527.0,97515.0,0.00017497]
[1733448257549,0.05,97523.0,97515.0,0.00017497]
[1733448258188,0.0451,97527.0,97515.0,0.00017497]
[1733448258412,0.05,97523.0,97515.0,0.00017497]
[1733448259976,0.05,97524.0,97515.0,0.00017497]
[1733448259980,0.05,97523.0,97515.0,0.00017497]
[1733448261281,0.05,97524.0,97515.0,0.00017497]
[1733448261493,0.05,97523.0,97515.0,0.00017497]
[1733448263666,0.05,97526.0,97515.0,0.00017497]
[1733448263877,0.05,97523.0,97515.0,0.00017497]
[1733448265630,0.05,97522.0,97515.0,0.00017497]
[1733448268523,0.05,97524.0,97515.0,0.00017497]
[1733448268730,0.05,97522.0,97515.0,0.00017497]
[1733448268936,0.1,97522.0,97515.0,0.00017497]
[1733448269372,0.05,97522.0,97515.0,0.00017497]
[1733448269573,0.1,97522.0,97515.0,0.00017497]
[1733448270876,0.0451,97527.0,97515.0,0.00017497]
[1733448270877,0.1,97516.0,97515.0,0.00017497]
[1733448271093,0.32623154,97516.0,97515.0,0.00017497]
[1733448271564,0.25013154,97516.0,97493.0,0.01559271]
[1733448271768,0.05,97505.0,97480.0,0.00686]
[1733448271974,0.05,97503.0,97480.0,0.00686]
[1733448272400,0.1261,97505.0,97480.0,0.00686]
[1733448272401,0.1,97499.0,97486.0,0.0162906]
[1733448272619,0.05,97498.0,97486.0,0.0162906]
[1733448275334,0.05,97491.0,97480.0,0.00686]
[1733448276179,0.05,97491.0,97480.0,0.02290148]
[1733448276400,0.13734812,97499.0,97480.0,0.02290148]
[1733448276401,0.05,97502.0,97480.0,0.02290148]
[1733448276623,0.05,97508.0,97480.0,0.02290148]
[1733448277267,0.09156541,97512.0,97480.0,0.02290148]
[1733448278353,0.05,97504.0,97480.0,0.02290148]
[1733448278594,0.09156541,97511.0,97480.0,0.02290148]
[1733448278811,0.09156541,97511.0,97480.0,0.00686]
[1733448279267,0.09156541,97511.0,97490.0,0.01797229]
[1733448279681,0.05,97499.0,97490.0,0.01797229]
[1733448279893,0.09156541,97511.0,97490.0,0.01797229]
[1733448280573,0.05,97504.0,97490.0,0.01797229]
[1733448282073,0.06543428,97505.0,97490.0,0.01797229]
[1733448283481,0.001,97509.0,97491.0,0.12803154]
[1733448283712,0.001,97509.0,97492.0,0.10503154]
[1733448284077,0.001,97509.0,97494.0,0.0149]
[1733448284295,0.001,97509.0,97495.0,0.12803154]
[1733448286795,0.001,97509.0,97490.0,0.01797229]
[1733448287002,0.001,97509.0,97491.0,0.10503154]
[1733448288431,0.001,97509.0,97492.0,0.023]
[1733448288635,0.001,97509.0,97493.0,0.023]
[1733448290311,0.001,97509.0,97495.0,0.023]
[1733448290560,0.001,97509.0,97497.0,0.023]
[1733448290764,0.001,97509.0,97497.0,0.12803154]
[1733448294776,0.001,97509.0,97491.0,0.023]
[1733448295200,0.05,97500.0,97490.0,0.01797229]
[1733448295411,0.079,97502.0,97490.0,0.0017298]
[1733448295412,0.05,97493.0,97490.0,0.0017298]
[1733448295644,0.1,97491.0,97490.0,0.0017298]
[1733448297347,0.129,97492.0,97490.0,0.0017298]
[1733448297603,0.05,97491.0,97490.0,0.0017298]